[Event "Titled Tuesday Blitz February 21 Early 2023"]
[White "Liu, Xiangyi"]
[Black "Larina, Maria"]
[WhiteFideId "8605718"]
[BlackFideId "24113182"]
[WhiteElo "2377"]
[BlackElo "1948"]
[Result "1-0"]
[Round "08"]
[TimeControl "180+2"]
[Date "2023.02.21"]
[WhiteClock "0:01:35"]
[BlackClock "0:00:17"]

1. e4 {[%clk 0:03:00]}  c6 {[%clk 0:02:59]} 2. d4 {[%clk 0:03:00]}  d5 {[%clk 0:02:59]} 3. f3 {[%clk 0:03:01]}  Qb6 {[%clk 0:02:57]} 4. Nc3 {[%clk 0:02:59]}  e6 {[%clk 0:02:56]} 5. Nge2 {[%clk 0:02:52]}  Nd7 {[%clk 0:02:46]} 6. Bf4 {[%clk 0:02:40]}  Qxb2 {[%clk 0:02:38]} 7. Rb1 {[%clk 0:02:40]}  Qa3 {[%clk 0:02:37]} 8. Rb3 {[%clk 0:02:40]}  Qe7 {[%clk 0:02:35]} 9. Ng3 {[%clk 0:02:38]}  g6 {[%clk 0:02:27]} 10. exd5 {[%clk 0:02:29]}  exd5+ {[%clk 0:02:24]} 11. Kf2 {[%clk 0:02:29]}  Bg7 {[%clk 0:02:09]} 12. Nxd5 {[%clk 0:02:27]}  cxd5 {[%clk 0:02:03]} 13. Re3 {[%clk 0:02:26]}  Ndf6 {[%clk 0:01:47]} 14. Bb5+ {[%clk 0:02:21]}  Bd7 {[%clk 0:01:36]} 15. Bxd7+ {[%clk 0:02:21]}  Nxd7 {[%clk 0:01:36]} 16. Rhe1 {[%clk 0:02:22]}  Kf8 {[%clk 0:01:20]} 17. Rxe7 {[%clk 0:02:11]}  Nxe7 {[%clk 0:01:20]} 18. c4 {[%clk 0:01:55]}  Nc6 {[%clk 0:00:54]} 19. cxd5 {[%clk 0:01:53]}  Nxd4 {[%clk 0:00:49]} 20. Bh6 {[%clk 0:01:41]}  Nb5 {[%clk 0:00:37]} 21. Bxg7+ {[%clk 0:01:37]}  Kxg7 {[%clk 0:00:38]} 22. Qa1+ {[%clk 0:01:38]}  Kg8 {[%clk 0:00:32]} 23. Re7 {[%clk 0:01:37]}  Rd8 {[%clk 0:00:30]} 24. Ne4 {[%clk 0:01:37]}  f5 {[%clk 0:00:17]} 25. Qg7# {[%clk 0:01:35]} 1-0


[Site "https://www.chess.com"]

[Event "Titled Tuesday Blitz February 21 Early 2023"]
[White "Tsotsonava, Elene"]
[Black "Seifert, Henryk"]
[WhiteFideId "13615939"]
[BlackFideId "1100963"]
[WhiteElo "2053"]
[BlackElo "2106"]
[Result "1-0"]
[Round "08"]
[TimeControl "180+2"]
[Date "2023.02.21"]
[WhiteClock "0:00:04"]
[BlackClock "0:00:01"]

1. e4 {[%clk 0:02:56]}  e6 {[%clk 0:02:55]} 2. d4 {[%clk 0:02:56]}  d5 {[%clk 0:02:54]} 3. Nd2 {[%clk 0:02:57]}  c5 {[%clk 0:02:51]} 4. exd5 {[%clk 0:02:57]}  exd5 {[%clk 0:02:51]} 5. Ngf3 {[%clk 0:02:57]}  Nc6 {[%clk 0:02:51]} 6. Bb5 {[%clk 0:02:55]}  Bd6 {[%clk 0:02:50]} 7. dxc5 {[%clk 0:02:55]}  Bxc5 {[%clk 0:02:51]} 8. O-O {[%clk 0:02:55]}  Ne7 {[%clk 0:02:48]} 9. Nb3 {[%clk 0:02:55]}  Bb6 {[%clk 0:02:46]} 10. Re1 {[%clk 0:02:55]}  O-O {[%clk 0:02:42]} 11. Bg5 {[%clk 0:02:54]}  Qd6 {[%clk 0:02:31]} 12. Bh4 {[%clk 0:02:47]}  Bg4 {[%clk 0:02:18]} 13. Bg3 {[%clk 0:02:34]}  Qf6 {[%clk 0:02:03]} 14. Be2 {[%clk 0:02:33]}  Rad8 {[%clk 0:01:45]} 15. c3 {[%clk 0:02:33]}  Nf5 {[%clk 0:01:34]} 16. Nfd4 {[%clk 0:01:38]}  Bxe2 {[%clk 0:01:24]} 17. Rxe2 {[%clk 0:01:03]}  Nfxd4 {[%clk 0:01:13]} 18. Nxd4 {[%clk 0:00:57]}  Nxd4 {[%clk 0:01:11]} 19. cxd4 {[%clk 0:00:56]}  Qxd4 {[%clk 0:01:08]} 20. Rd2 {[%clk 0:00:55]}  Qe4 {[%clk 0:01:00]} 21. Rc1 {[%clk 0:00:40]}  Rfe8 {[%clk 0:00:56]} 22. h3 {[%clk 0:00:31]}  h6 {[%clk 0:00:54]} 23. Rc3 {[%clk 0:00:27]}  d4 {[%clk 0:00:41]} 24. Rcd3 {[%clk 0:00:23]}  Qe1+ {[%clk 0:00:37]} 25. Qxe1 {[%clk 0:00:22]}  Rxe1+ {[%clk 0:00:37]} 26. Kh2 {[%clk 0:00:23]}  Re7 {[%clk 0:00:26]} 27. Bh4 {[%clk 0:00:19]}  g5 {[%clk 0:00:24]} 28. Bg3 {[%clk 0:00:20]}  f5 {[%clk 0:00:23]} 29. f4 {[%clk 0:00:18]}  Re4 {[%clk 0:00:16]} 30. fxg5 {[%clk 0:00:17]}  hxg5 {[%clk 0:00:16]} 31. Bf2 {[%clk 0:00:15]}  f4 {[%clk 0:00:15]} 32. h4 {[%clk 0:00:14]}  g4 {[%clk 0:00:14]} 33. g3 {[%clk 0:00:14]}  f3 {[%clk 0:00:13]} 34. Rc2 {[%clk 0:00:14]}  Rd7 {[%clk 0:00:11]} 35. Rc4 {[%clk 0:00:08]}  Kf7 {[%clk 0:00:10]} 36. h5 {[%clk 0:00:08]}  Kg7 {[%clk 0:00:08]} 37. Rc8 {[%clk 0:00:06]}  Kh6 {[%clk 0:00:08]} 38. Rh8+ {[%clk 0:00:06]}  Kg7 {[%clk 0:00:08]} 39. Rc8 {[%clk 0:00:06]}  Re2 {[%clk 0:00:07]} 40. Kg1 {[%clk 0:00:06]}  Rde7 {[%clk 0:00:07]} 41. Bxd4+ {[%clk 0:00:02]}  Bxd4+ {[%clk 0:00:05]} 42. Rxd4 {[%clk 0:00:03]}  Rg2+ {[%clk 0:00:05]} 43. Kf1 {[%clk 0:00:03]}  Rxb2 {[%clk 0:00:03]} 44. Rdd8 {[%clk 0:00:03]}  Rxa2 {[%clk 0:00:02]} 45. Rg8+ {[%clk 0:00:03]}  Kf7 {[%clk 0:00:01]} 46. Rcf8+ {[%clk 0:00:03]}  Ke6 {[%clk 0:00:01]} 47. Rg6+ {[%clk 0:00:04]} 1-0


[Site "https://www.chess.com"]

[Event "Titled Tuesday Blitz February 21 Early 2023"]
[White "Ricaurte Lopez, Juan Carlos"]
[Black "Rosh Jain"]
[WhiteFideId "3600327"]
[BlackFideId "25789465"]
[WhiteElo "2226"]
[BlackElo "2248"]
[Result "1-0"]
[Round "08"]
[TimeControl "180+2"]
[Date "2023.02.21"]
[WhiteClock "0:00:38"]
[BlackClock "0:00:23"]

1. e4 {[%clk 0:03:00]}  c5 {[%clk 0:02:57]} 2. d4 {[%clk 0:02:51]}  cxd4 {[%clk 0:02:56]} 3. c3 {[%clk 0:02:51]}  d3 {[%clk 0:02:56]} 4. Bxd3 {[%clk 0:02:50]}  d6 {[%clk 0:02:53]} 5. f4 {[%clk 0:02:51]}  g6 {[%clk 0:02:52]} 6. Nf3 {[%clk 0:02:51]}  Bg7 {[%clk 0:02:52]} 7. O-O {[%clk 0:02:50]}  Nc6 {[%clk 0:02:51]} 8. Qe1 {[%clk 0:02:48]}  Bd7 {[%clk 0:02:51]} 9. a4 {[%clk 0:02:44]}  Nf6 {[%clk 0:02:50]} 10. Na3 {[%clk 0:02:42]}  O-O {[%clk 0:02:49]} 11. Nc2 {[%clk 0:02:41]}  Rc8 {[%clk 0:02:45]} 12. Kh1 {[%clk 0:02:40]}  a6 {[%clk 0:02:41]} 13. Qh4 {[%clk 0:02:34]}  Qc7 {[%clk 0:02:36]} 14. Ne3 {[%clk 0:02:28]}  e6 {[%clk 0:02:18]} 15. f5 {[%clk 0:02:14]}  exf5 {[%clk 0:02:13]} 16. exf5 {[%clk 0:02:01]}  Ne5 {[%clk 0:02:12]} 17. fxg6 {[%clk 0:01:41]}  Nxd3 {[%clk 0:02:01]} 18. Nd5 {[%clk 0:01:37]}  fxg6 {[%clk 0:01:21]} 19. Nxc7 {[%clk 0:01:36]}  Rxc7 {[%clk 0:01:20]} 20. Bh6 {[%clk 0:01:33]}  Ng4 {[%clk 0:01:19]} 21. Bxg7 {[%clk 0:01:28]}  Kxg7 {[%clk 0:01:19]} 22. Rad1 {[%clk 0:01:24]}  Bf5 {[%clk 0:01:09]} 23. Nd4 {[%clk 0:01:18]}  Rcf7 {[%clk 0:00:46]} 24. Nxf5+ {[%clk 0:01:16]}  Rxf5 {[%clk 0:00:47]} 25. Rxf5 {[%clk 0:01:04]}  Rxf5 {[%clk 0:00:45]} 26. Kg1 {[%clk 0:00:56]}  Ne3 {[%clk 0:00:38]} 27. Qd4+ {[%clk 0:00:51]}  Re5 {[%clk 0:00:26]} 28. Qxd3 {[%clk 0:00:49]}  Nf5 {[%clk 0:00:25]} 29. g4 {[%clk 0:00:43]}  Ne3 {[%clk 0:00:25]} 30. Qxd6 {[%clk 0:00:41]}  Nxg4 {[%clk 0:00:25]} 31. h3 {[%clk 0:00:40]}  Rg5 {[%clk 0:00:22]} 32. hxg4 {[%clk 0:00:38]}  Rxg4+ {[%clk 0:00:23]} 33. Kf2 {[%clk 0:00:38]} 1-0


[Site "https://www.chess.com"]

[Event "Titled Tuesday Blitz February 21 Early 2023"]
[White "Calcada, Lucas Galvan"]
[Black "Broca Jimenez, Fernando"]
[WhiteFideId "22746099"]
[BlackFideId "5104742"]
[WhiteElo "1739"]
[BlackElo "2075"]
[Result "1-0"]
[Round "08"]
[TimeControl "180+2"]
[Date "2023.02.21"]
[WhiteClock "0:01:56"]
[BlackClock "0:00:19"]

1. e4 {[%clk 0:02:57]}  c5 {[%clk 0:02:59]} 2. Nf3 {[%clk 0:02:55]}  g6 {[%clk 0:02:59]} 3. d4 {[%clk 0:02:55]}  cxd4 {[%clk 0:03:00]} 4. Nxd4 {[%clk 0:02:56]}  Nc6 {[%clk 0:02:59]} 5. Nb3 {[%clk 0:02:50]}  Nf6 {[%clk 0:02:56]} 6. Nc3 {[%clk 0:02:50]}  Bg7 {[%clk 0:02:56]} 7. Be3 {[%clk 0:02:49]}  O-O {[%clk 0:02:55]} 8. f3 {[%clk 0:02:49]}  d6 {[%clk 0:02:49]} 9. Qd2 {[%clk 0:02:48]}  Be6 {[%clk 0:02:47]} 10. O-O-O {[%clk 0:02:48]}  Rc8 {[%clk 0:02:45]} 11. Kb1 {[%clk 0:02:48]}  Na5 {[%clk 0:02:45]} 12. Nxa5 {[%clk 0:02:44]}  Qxa5 {[%clk 0:02:46]} 13. Nd5 {[%clk 0:02:44]}  Qd8 {[%clk 0:02:43]} 14. h4 {[%clk 0:02:37]}  Nxd5 {[%clk 0:02:05]} 15. exd5 {[%clk 0:02:37]}  Bf5 {[%clk 0:02:06]} 16. Bd3 {[%clk 0:02:36]}  Bxd3 {[%clk 0:01:54]} 17. Qxd3 {[%clk 0:02:37]}  Qa5 {[%clk 0:01:54]} 18. h5 {[%clk 0:02:33]}  Rc3 {[%clk 0:00:43]} 19. bxc3 {[%clk 0:02:18]}  Bxc3 {[%clk 0:00:43]} 20. Qc4 {[%clk 0:02:16]}  b5 {[%clk 0:00:22]} 21. Qb3 {[%clk 0:02:07]}  Rc8 {[%clk 0:00:21]} 22. hxg6 {[%clk 0:02:06]}  hxg6 {[%clk 0:00:20]} 23. Bd4 {[%clk 0:01:57]}  Rc4 {[%clk 0:00:19]} 24. Rh8# {[%clk 0:01:56]} 1-0


[Site "https://www.chess.com"]

[Event "Titled Tuesday Blitz February 21 Early 2023"]
[White "Winkels, Marcel"]
[Black "Jaivardhan Raj"]
[WhiteFideId "1003887"]
[BlackFideId "25744437"]
[WhiteElo "1960"]
[BlackElo "1901"]
[Result "0-1"]
[Round "08"]
[TimeControl "180+2"]
[Date "2023.02.21"]
[WhiteClock "0:00:31"]
[BlackClock "0:00:25"]

1. e4 {[%clk 0:03:00]}  c5 {[%clk 0:02:58]} 2. Nf3 {[%clk 0:03:00]}  e6 {[%clk 0:02:57]} 3. d4 {[%clk 0:02:59]}  cxd4 {[%clk 0:02:58]} 4. Nxd4 {[%clk 0:03:00]}  Nc6 {[%clk 0:02:59]} 5. Nc3 {[%clk 0:03:00]}  a6 {[%clk 0:02:59]} 6. g3 {[%clk 0:03:00]}  Qc7 {[%clk 0:02:59]} 7. Bg2 {[%clk 0:03:00]}  Nf6 {[%clk 0:02:59]} 8. O-O {[%clk 0:02:58]}  d6 {[%clk 0:02:59]} 9. h3 {[%clk 0:02:56]}  Be7 {[%clk 0:02:58]} 10. Be3 {[%clk 0:02:52]}  O-O {[%clk 0:02:58]} 11. f4 {[%clk 0:02:51]}  Rd8 {[%clk 0:02:54]} 12. g4 {[%clk 0:02:48]}  Nxd4 {[%clk 0:02:50]} 13. Bxd4 {[%clk 0:02:45]}  e5 {[%clk 0:02:50]} 14. Be3 {[%clk 0:02:39]}  exf4 {[%clk 0:02:50]} 15. Rxf4 {[%clk 0:02:26]}  b5 {[%clk 0:02:44]} 16. g5 {[%clk 0:02:24]}  Ne8 {[%clk 0:02:34]} 17. Nd5 {[%clk 0:02:22]}  Qb7 {[%clk 0:02:23]} 18. e5 {[%clk 0:02:20]}  dxe5 {[%clk 0:02:22]} 19. Nf6+ {[%clk 0:02:19]}  gxf6 {[%clk 0:02:17]} 20. Bxb7 {[%clk 0:02:19]}  Rxd1+ {[%clk 0:02:14]} 21. Rxd1 {[%clk 0:02:16]}  exf4 {[%clk 0:02:06]} 22. Bxa8 {[%clk 0:02:06]}  fxe3 {[%clk 0:02:06]} 23. gxf6 {[%clk 0:01:50]}  Nxf6 {[%clk 0:02:06]} 24. Bg2 {[%clk 0:01:42]}  Bf5 {[%clk 0:01:53]} 25. Re1 {[%clk 0:01:36]}  Bxc2 {[%clk 0:01:49]} 26. Kf1 {[%clk 0:01:33]}  Bd3+ {[%clk 0:01:48]} 27. Kg1 {[%clk 0:01:32]}  Bc5 {[%clk 0:01:40]} 28. Kh2 {[%clk 0:01:26]}  e2 {[%clk 0:01:39]} 29. Bf3 {[%clk 0:01:20]}  Bf2 {[%clk 0:01:30]} 30. Rxe2 {[%clk 0:01:18]}  Bxe2 {[%clk 0:01:29]} 31. Bxe2 {[%clk 0:01:19]}  Bd4 {[%clk 0:01:29]} 32. b3 {[%clk 0:01:18]}  Nd5 {[%clk 0:01:28]} 33. a4 {[%clk 0:01:16]}  Nc3 {[%clk 0:01:27]} 34. Bd3 {[%clk 0:01:09]}  bxa4 {[%clk 0:01:22]} 35. bxa4 {[%clk 0:01:09]}  a5 {[%clk 0:01:21]} 36. Bc2 {[%clk 0:01:09]}  Kg7 {[%clk 0:01:13]} 37. Kg3 {[%clk 0:01:09]}  Kf6 {[%clk 0:01:08]} 38. Kf3 {[%clk 0:01:09]}  h6 {[%clk 0:01:06]} 39. Kg4 {[%clk 0:01:02]}  Nd5 {[%clk 0:00:55]} 40. Kh5 {[%clk 0:01:01]}  Nf4+ {[%clk 0:00:47]} 41. Kg4 {[%clk 0:00:59]}  Be5 {[%clk 0:00:45]} 42. Bb3 {[%clk 0:00:55]}  h5+ {[%clk 0:00:41]} 43. Kg3 {[%clk 0:00:52]}  Kg5 {[%clk 0:00:36]} 44. h4+ {[%clk 0:00:51]}  Kf6 {[%clk 0:00:36]} 45. Bc2 {[%clk 0:00:50]}  Nd5+ {[%clk 0:00:34]} 46. Kf2 {[%clk 0:00:46]}  Bd4+ {[%clk 0:00:32]} 47. Kf3 {[%clk 0:00:45]}  Ne3 {[%clk 0:00:31]} 48. Bd3 {[%clk 0:00:44]}  Nf5 {[%clk 0:00:30]} 49. Ke4 {[%clk 0:00:43]}  Bc3 {[%clk 0:00:28]} 50. Kd5 {[%clk 0:00:42]}  Nxh4 {[%clk 0:00:28]} 51. Be2 {[%clk 0:00:40]}  Kg5 {[%clk 0:00:27]} 52. Kc4 {[%clk 0:00:40]}  Bb4 {[%clk 0:00:27]} 53. Kd5 {[%clk 0:00:39]}  f5 {[%clk 0:00:27]} 54. Ke5 {[%clk 0:00:36]}  Bc3+ {[%clk 0:00:27]} 55. Kd5 {[%clk 0:00:35]}  Ng2 {[%clk 0:00:25]} 56. Kc4 {[%clk 0:00:32]}  Bb4 {[%clk 0:00:25]} 57. Kd5 {[%clk 0:00:31]}  Nf4+ {[%clk 0:00:25]} 58. Ke5 {[%clk 0:00:31]}  Nxe2 {[%clk 0:00:25]} 0-1


[Site "https://www.chess.com"]

[Event "Titled Tuesday Blitz February 21 Early 2023"]
[White "Bashirli, Saadat"]
[Black "Clawitter, Craig"]
[WhiteFideId "13429990"]
[BlackFideId "2023105"]
[WhiteElo "1571"]
[BlackElo "2050"]
[Result "0-1"]
[Round "08"]
[TimeControl "180+2"]
[Date "2023.02.21"]
[WhiteClock "0:00:28"]
[BlackClock "0:00:33"]

1. e4 {[%clk 0:03:00]}  e6 {[%clk 0:02:48]} 2. d4 {[%clk 0:02:56]}  d5 {[%clk 0:02:49]} 3. Nc3 {[%clk 0:02:55]}  Bb4 {[%clk 0:02:47]} 4. Ne2 {[%clk 0:02:55]}  dxe4 {[%clk 0:02:46]} 5. a3 {[%clk 0:02:54]}  Be7 {[%clk 0:02:47]} 6. Nxe4 {[%clk 0:02:53]}  Nf6 {[%clk 0:02:47]} 7. N2c3 {[%clk 0:02:53]}  Nc6 {[%clk 0:02:47]} 8. Bb5 {[%clk 0:02:51]}  Bd7 {[%clk 0:02:44]} 9. O-O {[%clk 0:02:50]}  O-O {[%clk 0:02:44]} 10. Nxf6+ {[%clk 0:02:45]}  Bxf6 {[%clk 0:02:44]} 11. Be3 {[%clk 0:02:43]}  a6 {[%clk 0:02:30]} 12. Bd3 {[%clk 0:02:40]}  Nxd4 {[%clk 0:02:25]} 13. Bxd4 {[%clk 0:02:37]}  Bxd4 {[%clk 0:02:26]} 14. Bxh7+ {[%clk 0:02:36]}  Kxh7 {[%clk 0:02:27]} 15. Qxd4 {[%clk 0:02:36]}  Bc6 {[%clk 0:02:22]} 16. Qe3 {[%clk 0:02:34]}  Qf6 {[%clk 0:02:15]} 17. Rad1 {[%clk 0:02:32]}  Rad8 {[%clk 0:02:15]} 18. Qh3+ {[%clk 0:02:29]}  Kg8 {[%clk 0:02:14]} 19. Qg3 {[%clk 0:02:18]}  g6 {[%clk 0:02:06]} 20. Qxc7 {[%clk 0:02:15]}  Kg7 {[%clk 0:02:00]} 21. Qg3 {[%clk 0:02:11]}  Rh8 {[%clk 0:01:52]} 22. Rxd8 {[%clk 0:02:06]}  Rxd8 {[%clk 0:01:53]} 23. Re1 {[%clk 0:02:05]}  Rd2 {[%clk 0:01:48]} 24. Rc1 {[%clk 0:01:58]}  Qf5 {[%clk 0:01:33]} 25. Nd1 {[%clk 0:01:34]}  Qxc2 {[%clk 0:00:52]} 26. Qc3+ {[%clk 0:01:09]}  Qxc3 {[%clk 0:00:49]} 27. bxc3 {[%clk 0:01:06]}  Ra2 {[%clk 0:00:42]} 28. Ne3 {[%clk 0:01:05]}  Rxa3 {[%clk 0:00:42]} 29. Nc4 {[%clk 0:01:00]}  Ra2 {[%clk 0:00:38]} 30. h3 {[%clk 0:00:53]}  a5 {[%clk 0:00:37]} 31. Rb1 {[%clk 0:00:49]}  a4 {[%clk 0:00:33]} 32. Nd6 {[%clk 0:00:47]}  a3 {[%clk 0:00:31]} 33. Nxb7 {[%clk 0:00:45]}  Rb2 {[%clk 0:00:29]} 34. Ra1 {[%clk 0:00:32]}  a2 {[%clk 0:00:29]} 35. Kh2 {[%clk 0:00:26]}  Bxb7 {[%clk 0:00:29]} 36. Kg3 {[%clk 0:00:24]}  Bd5 {[%clk 0:00:27]} 37. f3 {[%clk 0:00:20]}  Rb1 {[%clk 0:00:27]} 38. Rxa2 {[%clk 0:00:18]}  Bxa2 {[%clk 0:00:28]} 39. c4 {[%clk 0:00:19]}  Bxc4 {[%clk 0:00:28]} 40. f4 {[%clk 0:00:18]}  Rb3+ {[%clk 0:00:28]} 41. Kg4 {[%clk 0:00:18]}  Kf6 {[%clk 0:00:29]} 42. f5 {[%clk 0:00:19]}  exf5+ {[%clk 0:00:29]} 43. Kf4 {[%clk 0:00:20]}  Bd5 {[%clk 0:00:30]} 44. g4 {[%clk 0:00:21]}  fxg4 {[%clk 0:00:30]} 45. hxg4 {[%clk 0:00:20]}  Rb4+ {[%clk 0:00:30]} 46. Kg3 {[%clk 0:00:20]}  Kg5 {[%clk 0:00:31]} 47. Kf2 {[%clk 0:00:20]}  Rxg4 {[%clk 0:00:31]} 48. Ke2 {[%clk 0:00:21]}  Rf4 {[%clk 0:00:31]} 49. Kd3 {[%clk 0:00:21]}  Rf5 {[%clk 0:00:31]} 50. Kd2 {[%clk 0:00:22]}  Kf6 {[%clk 0:00:31]} 51. Kc2 {[%clk 0:00:23]}  Bb3+ {[%clk 0:00:31]} 52. Kb2 {[%clk 0:00:24]}  g5 {[%clk 0:00:32]} 53. Kxb3 {[%clk 0:00:24]}  g4 {[%clk 0:00:32]} 54. Kc3 {[%clk 0:00:25]}  g3 {[%clk 0:00:32]} 55. Kd3 {[%clk 0:00:25]}  g2 {[%clk 0:00:33]} 56. Ke2 {[%clk 0:00:26]}  g1=Q {[%clk 0:00:32]} 57. Kd3 {[%clk 0:00:27]}  Qg3+ {[%clk 0:00:32]} 58. Ke2 {[%clk 0:00:27]}  Rf2+ {[%clk 0:00:32]} 59. Kd1 {[%clk 0:00:28]}  Qg1# {[%clk 0:00:33]} 0-1


[Site "https://www.chess.com"]

[Event "Titled Tuesday Blitz February 21 Early 2023"]
[White "Estevez Polanco, Leonardo Rafael"]
[Black "Slaby, Jerzy"]
[WhiteFideId "6402798"]
[BlackFideId "1121405"]
[WhiteElo "2096"]
[BlackElo "2469"]
[Result "1-0"]
[Round "08"]
[TimeControl "180+2"]
[Date "2023.02.21"]
[WhiteClock "0:01:13"]
[BlackClock "0:00:12"]

1. e4 {[%clk 0:02:55]}  c5 {[%clk 0:02:57]} 2. f3 {[%clk 0:02:54]}  e6 {[%clk 0:02:54]} 3. c4 {[%clk 0:02:51]}  Bd6 {[%clk 0:02:47]} 4. d4 {[%clk 0:02:51]}  Qh4+ {[%clk 0:02:39]} 5. Ke2 {[%clk 0:02:52]}  Nf6 {[%clk 0:02:29]} 6. dxc5 {[%clk 0:02:52]}  Bxc5 {[%clk 0:02:27]} 7. Qe1 {[%clk 0:02:51]}  Qh5 {[%clk 0:02:18]} 8. Kd1 {[%clk 0:02:45]}  Qe5 {[%clk 0:02:13]} 9. Nc3 {[%clk 0:02:42]}  Nc6 {[%clk 0:02:10]} 10. Nge2 {[%clk 0:02:39]}  Nd4 {[%clk 0:01:58]} 11. Nxd4 {[%clk 0:02:37]}  Bxd4 {[%clk 0:01:55]} 12. Kc2 {[%clk 0:02:37]}  a6 {[%clk 0:01:47]} 13. Bd2 {[%clk 0:02:37]}  O-O {[%clk 0:01:38]} 14. f4 {[%clk 0:02:32]}  Qc5 {[%clk 0:01:34]} 15. e5 {[%clk 0:02:31]}  Ng4 {[%clk 0:01:32]} 16. Be2 {[%clk 0:02:28]}  Ne3+ {[%clk 0:01:19]} 17. Bxe3 {[%clk 0:02:27]}  Bxe3 {[%clk 0:01:17]} 18. g3 {[%clk 0:02:27]}  b6 {[%clk 0:01:13]} 19. Rd1 {[%clk 0:02:27]}  Bb7 {[%clk 0:01:13]} 20. Rf1 {[%clk 0:02:27]}  Bd4 {[%clk 0:01:10]} 21. Kb1 {[%clk 0:02:17]}  b5 {[%clk 0:01:05]} 22. cxb5 {[%clk 0:02:13]}  axb5 {[%clk 0:01:03]} 23. Qd2 {[%clk 0:02:13]}  Bxc3 {[%clk 0:00:50]} 24. Qxc3 {[%clk 0:02:13]}  Be4+ {[%clk 0:00:49]} 25. Bd3 {[%clk 0:02:13]}  Qxc3 {[%clk 0:00:45]} 26. bxc3 {[%clk 0:02:13]}  Bd5 {[%clk 0:00:45]} 27. Rd2 {[%clk 0:02:10]}  Rfb8 {[%clk 0:00:43]} 28. Rff2 {[%clk 0:02:03]}  Ra3 {[%clk 0:00:35]} 29. Rb2 {[%clk 0:01:56]}  Rxc3 {[%clk 0:00:35]} 30. Rxb5 {[%clk 0:01:31]}  Rbc8 {[%clk 0:00:31]} 31. Rc2 {[%clk 0:01:23]}  Bxa2+ {[%clk 0:00:23]} 32. Kb2 {[%clk 0:01:18]}  Rxc2+ {[%clk 0:00:17]} 33. Bxc2 {[%clk 0:01:18]}  Bc4 {[%clk 0:00:17]} 34. Rb7 {[%clk 0:01:16]}  Rd8 {[%clk 0:00:15]} 35. Ba4 {[%clk 0:01:15]}  Kf8 {[%clk 0:00:14]} 36. Rxd7 {[%clk 0:01:13]}  Rxd7 {[%clk 0:00:13]} 37. Bxd7 {[%clk 0:01:14]}  Ke7 {[%clk 0:00:13]} 38. Bc6 {[%clk 0:01:13]}  Kd8 {[%clk 0:00:13]} 39. Kc3 {[%clk 0:01:13]}  Kc8 {[%clk 0:00:12]} 40. Kxc4 {[%clk 0:01:12]}  Kc7 {[%clk 0:00:12]} 41. Kc5 {[%clk 0:01:13]} 1-0


[Site "https://www.chess.com"]

[Event "Titled Tuesday Blitz February 21 Early 2023"]
[White "Caruana, Fabiano"]
[Black "Erigaisi Arjun"]
[WhiteFideId "2020009"]
[BlackFideId "35009192"]
[WhiteElo "2764"]
[BlackElo "2701"]
[Result "1-0"]
[Round "09"]
[TimeControl "180+2"]
[Date "2023.02.21"]
[WhiteClock "0:00:11"]
[BlackClock "0:00:02"]

1. c4 {[%clk 0:03:00]}  g6 {[%clk 0:02:55]} 2. Nc3 {[%clk 0:03:00]}  Bg7 {[%clk 0:02:54]} 3. d4 {[%clk 0:03:01]}  c5 {[%clk 0:02:53]} 4. d5 {[%clk 0:03:01]}  Nf6 {[%clk 0:02:52]} 5. e4 {[%clk 0:03:00]}  d6 {[%clk 0:02:52]} 6. Bd3 {[%clk 0:03:00]}  O-O {[%clk 0:02:51]} 7. Nf3 {[%clk 0:03:00]}  e6 {[%clk 0:02:51]} 8. h3 {[%clk 0:03:00]}  exd5 {[%clk 0:02:51]} 9. exd5 {[%clk 0:03:01]}  Re8+ {[%clk 0:02:51]} 10. Be3 {[%clk 0:03:02]}  Rxe3+ {[%clk 0:02:50]} 11. fxe3 {[%clk 0:03:02]}  Nbd7 {[%clk 0:02:51]} 12. O-O {[%clk 0:03:02]}  Qe7 {[%clk 0:02:51]} 13. Qd2 {[%clk 0:03:02]}  b6 {[%clk 0:02:50]} 14. Rae1 {[%clk 0:02:48]}  Ba6 {[%clk 0:02:46]} 15. Qf2 {[%clk 0:02:43]}  Rf8 {[%clk 0:02:39]} 16. Qh4 {[%clk 0:02:39]}  Re8 {[%clk 0:02:13]} 17. a4 {[%clk 0:02:10]}  h6 {[%clk 0:02:10]} 18. Re2 {[%clk 0:01:46]}  Bc8 {[%clk 0:01:40]} 19. Nb5 {[%clk 0:01:36]}  a6 {[%clk 0:01:21]} 20. Na7 {[%clk 0:01:35]}  Bb7 {[%clk 0:01:21]} 21. Bc2 {[%clk 0:01:01]}  Nb8 {[%clk 0:00:40]} 22. a5 {[%clk 0:00:54]}  Qc7 {[%clk 0:00:23]} 23. Nd2 {[%clk 0:00:40]}  Nfd7 {[%clk 0:00:12]} 24. Ref2 {[%clk 0:00:40]}  Ne5 {[%clk 0:00:08]} 25. Ne4 {[%clk 0:00:29]}  Bxd5 {[%clk 0:00:08]} 26. cxd5 {[%clk 0:00:29]}  Qxa7 {[%clk 0:00:08]} 27. Nxd6 {[%clk 0:00:29]}  Rf8 {[%clk 0:00:09]} 28. axb6 {[%clk 0:00:24]}  Qxb6 {[%clk 0:00:10]} 29. Nc4 {[%clk 0:00:24]}  Qb4 {[%clk 0:00:08]} 30. b3 {[%clk 0:00:24]}  Nbd7 {[%clk 0:00:07]} 31. Qe7 {[%clk 0:00:22]}  Qc3 {[%clk 0:00:07]} 32. Kh1 {[%clk 0:00:18]}  a5 {[%clk 0:00:06]} 33. d6 {[%clk 0:00:13]}  h5 {[%clk 0:00:03]} 34. Be4 {[%clk 0:00:12]}  a4 {[%clk 0:00:02]} 35. Nxe5 {[%clk 0:00:10]}  Nxe5 {[%clk 0:00:03]} 36. d7 {[%clk 0:00:10]}  Nxd7 {[%clk 0:00:02]} 37. Qxd7 {[%clk 0:00:11]}  Qxe3 {[%clk 0:00:02]} 38. Bd5 {[%clk 0:00:11]}  Be5 {[%clk 0:00:02]} 39. Rxf7 {[%clk 0:00:11]} 1-0


[Site "https://www.chess.com"]